{"text_format":"2","workbook":"xlsx","n_sheets":3,"sheets":["견적입찰업체 단가비교표","Sheet2","Sheet3"],"not_rendered":{"charts":0,"images":0,"macros":0,"external_links":0,"defined_names":0,"comments":0,"pivot_tables":0},"unopened":[],"bounds":{"document_bytes":16777216,"sheet_cells":100000,"run_cost":"one","rows_first":2000,"rows_last":500,"rows_between":2000,"halvings":0,"cell_chars":16384,"cell_head_chars":4096},"cells_cut":0,"cells_raw":0,"read":"whole","date_system":"1900"}

{"sheet":"견적입찰업체 단가비교표","index":0,"n_rows":26,"n_cols":8,"rows_kept":26,"cut":false,"hidden":false,"merged":[[25,5,25,7],[19,7,22,7],[0,0,0,7],[1,7,2,7],[1,0,2,0],[1,1,2,1],[1,2,2,2],[1,3,2,3],[1,5,2,5],[1,6,2,6],[1,4,2,4]]}
["                      [프로젝터 램프 규격 단가표]          업체명 :                    (인)"]
["연번","물품명","제조사","램프규격","수량","단가","금액","비고"]
[]
[1,"프로젝터 램프","PANASONIC\n(구 SANYO)","PLC-XT15KA",4,null,{"$f":"E4*F4","v":0}]
[2,"프로젝터 램프","PANASONIC\n(구 SANYO)","PLC-XT15KS",3,null,{"$f":"E5*F5","v":0}]
[3,"프로젝터 램프","PANASONIC\n(구 SANYO)","PLC-XT16KA",5,null,0]
[4,"프로젝터 램프","PANASONIC\n(구 SANYO)","PLC-XT20",1,null,0]
[5,"프로젝터 램프","PANASONIC\n(구 SANYO)","PLC-XT25",4,null,0]
[6,"프로젝터 램프","PANASONIC\n(구 SANYO)","PLC-XT35",31,null,0]
[7,"프로젝터 램프","PANASONIC\n(구 SANYO)","PLC-XP56",1,null,0]
[8,"프로젝터 램프","PANASONIC\n(구 SANYO)","PLC-XF45",8,null,0]
[9,"프로젝터 램프","PANASONIC\n(구 SANYO)","PLC-XF47",2,null,0]
[10,"프로젝터 램프","PANASONIC\n(구 SANYO)","PLC-XU100",4,null,0]
[11,"프로젝터 램프","PANASONIC\n(구 SANYO)","PLC-XU101",5,null,0]
[12,"프로젝터 램프","PANASONIC\n(구 SANYO)","PLC-XU105",1,null,0]
[13,"프로젝터 램프","PANASONIC\n(구 SANYO)","PLC-XU106",30,null,0]
[14,"프로젝터 램프","PANASONIC\n(구 SANYO)","PLC-XM100",4,null,0]
[15,"프로젝터 램프","PANASONIC\n(구 SANYO)","PLC-XM150",1,null,0]
[16,"프로젝터 램프","PANASONIC\n(구 SANYO)","PLC-XU300",2,null,0]
[17,"프로젝터 램프","PANASONIC","PT-EX600E",null,null,0,"신규"]
[18,"프로젝터 램프","PANASONIC","PT-EX500E",null,null,0]
[19,"프로젝터 램프","PANASONIC","PT-VX400EA",null,null,0]
[20,"프로젝터 램프","PANASONIC","PT-LX30HEA",null,null,0]
["계",null,null,null,{"$f":"SUM(E4:E23)","v":106},null,null,{"$f":"SUM(H4:H19)","v":0}]
[]
[{"$nulls":5},": 많이 구매하는 품목"]

{"sheet":"Sheet2","index":1,"n_rows":0,"n_cols":0,"rows_kept":0,"cut":false,"hidden":false,"merged":[]}

{"sheet":"Sheet3","index":2,"n_rows":0,"n_cols":0,"rows_kept":0,"cut":false,"hidden":false,"merged":[]}